bitfinex-derivatives/quotes_BTCF0:USTF0_20250324
["timestamp","ask_amount","ask_price","bid_price","bid_amount"]
[1742781257501,0.29182276,85678.0,85677.0,0.3373151]
[1742781257705,0.29182276,85678.0,85677.0,0.4407151]
[1742781258207,0.29482276,85678.0,85677.0,0.4407151]
[1742781259811,0.29282276,85678.0,85677.0,0.4407151]
[1742781260111,0.1184737,85678.0,85677.0,0.4407151]
[1742781260407,0.1177137,85678.0,85677.0,0.4407151]
[1742781260999,0.1167137,85678.0,85677.0,0.4407151]
[1742781261710,0.1177137,85678.0,85677.0,0.4407151]
[1742781263203,0.1167137,85678.0,85677.0,0.4407151]
[1742781263503,0.001,85678.0,85677.0,0.4407151]
[1742781263701,0.0583465,85694.0,85685.0,0.1167028]
[1742781263702,0.1750543,85686.0,85685.0,0.1167028]
[1742781263900,0.1758143,85686.0,85685.0,0.2373828]
[1742781264798,0.00076,85686.0,85685.0,0.2373828]
[1742781265000,0.1525628,85686.0,85685.0,0.2697828]
[1742781265208,0.1545628,85686.0,85685.0,0.2697828]
[1742781265405,0.1545628,85686.0,85685.0,0.28152947]
[1742781265609,0.1525628,85686.0,85685.0,0.28152947]
[1742781266110,0.1535628,85686.0,85685.0,0.28152947]
[1742781266503,0.00176,85686.0,85685.0,0.28152947]
[1742781266703,0.001,85686.0,85685.0,0.28152947]
[1742781267007,0.00184,85686.0,85685.0,0.28152947]
[1742781267210,0.20961887,85704.0,85703.0,0.1166796]
[1742781267405,0.21029887,85704.0,85703.0,0.3429196]
[1742781268610,0.21129887,85704.0,85703.0,0.3429196]
[1742781269010,0.21129887,85704.0,85703.0,0.35487215]
[1742781270712,0.00208,85704.0,85703.0,0.35487215]
[1742781271802,0.00208,85704.0,85703.0,0.36380291]
[1742781273306,0.03558,85704.0,85703.0,0.36380291]
[1742781274307,0.0349,85704.0,85703.0,0.36380291]
[1742781275416,0.03562,85704.0,85703.0,0.36380291]
[1742781275714,0.0349,85704.0,85703.0,0.36380291]
[1742781276114,0.03558,85704.0,85703.0,0.36380291]
[1742781276315,0.03558,85704.0,85703.0,0.72460291]
[1742781276613,0.03558,85704.0,85703.0,0.71265036]
[1742781276817,0.0349,85704.0,85703.0,0.71265036]
[1742781277005,0.1515783,85704.0,85703.0,0.47152]
[1742781277202,0.5465983,85704.0,85703.0,0.11072]
[1742781277407,0.5465983,85704.0,85703.0,0.00072]
[1742781277609,0.5465983,85704.0,85703.0,0.1173996]
[1742781280311,0.5465983,85704.0,85703.0,0.00072]
[1742781280510,0.1166796,85703.0,85702.0,0.116681]
[1742781280719,0.1166824,85701.0,85700.0,0.1166826]
[1742781280908,0.1173624,85701.0,85700.0,0.1173626]
[1742781281419,0.1509624,85701.0,85700.0,0.1173626]
[1742781283816,0.1627188,85701.0,85700.0,0.1173626]
[1742781284719,0.1637188,85701.0,85700.0,0.1173626]
[1742781288521,0.1637188,85701.0,85700.0,0.00068]
[1742781288720,0.1166892,85696.0,85695.0,0.11686559]
[1742781288925,0.1174092,85696.0,85695.0,0.12754559]
[1742781289724,0.2161092,85696.0,85695.0,0.12754559]
[1742781296416,0.2181092,85696.0,85695.0,0.12754559]
[1742781298526,0.2161092,85696.0,85695.0,0.12754559]
[1742781298725,0.2171092,85696.0,85695.0,0.12754559]
[1742781299828,0.2181092,85696.0,85695.0,0.12754559]
[1742781302223,0.2171092,85696.0,85695.0,0.12754559]
[1742781302822,0.2181092,85696.0,85695.0,0.12754559]
[1742781303622,0.2181092,85696.0,85695.0,0.01085509]
[1742781303926,0.1167096,85681.0,85680.0,0.11544]
[1742781304124,0.1174696,85681.0,85680.0,0.05068]
[1742781304322,0.1174696,85681.0,85680.0,0.167391]
[1742781304640,0.1174696,85681.0,85680.0,0.198691]
[1742781304835,0.1817696,85681.0,85680.0,0.198691]
[1742781305830,0.1817696,85681.0,85680.0,0.200691]
[1742781306834,0.1817696,85681.0,85680.0,0.202691]
[1742781307430,0.1817696,85681.0,85680.0,0.201691]
[1742781307626,0.1817696,85681.0,85680.0,0.234091]
[1742781308322,0.1817696,85681.0,85680.0,0.233091]
[1742781308732,0.1817696,85681.0,85680.0,0.200691]
[1742781309534,0.0583482,85691.0,85680.0,0.200691]
[1742781309535,0.20921887,85698.0,85688.0,0.1167001]
[1742781309730,0.11687379,85689.0,85688.0,0.2676601]
[1742781309932,0.1174738,85689.0,85688.0,0.2676601]
[1742781310831,0.1517738,85689.0,85688.0,0.3019601]
[1742781311137,0.1527738,85689.0,85688.0,0.3019601]
[1742781311329,0.1527738,85689.0,85688.0,0.3345601]
[1742781311926,0.1527738,85689.0,85688.0,0.4500001]
[1742781312330,0.1527738,85689.0,85688.0,0.4814001]
[1742781312940,0.1856738,85689.0,85688.0,0.4814001]
[1742781318132,0.1856738,85689.0,85688.0,0.4500001]
[1742781319038,0.1856738,85689.0,85688.0,0.15096]
[1742781319243,0.1856738,85689.0,85688.0,0.2676601]
[1742781320142,0.1856738,85689.0,85688.0,0.3009601]
[1742781323246,0.1856738,85689.0,85688.0,0.3331601]
[1742781326646,0.1856738,85689.0,85688.0,0.34503701]
[1742781326848,0.1856738,85689.0,85688.0,0.3331601]
[1742781328047,0.0017751,85689.0,85688.0,0.3331601]
[1742781328347,0.00117509,85689.0,85688.0,0.4531601]
[1742781328648,0.00209509,85689.0,85688.0,0.4531601]
[1742781330152,0.01182075,85703.0,85696.0,0.0583439]
[1742781330450,0.01182075,85703.0,85702.0,0.477481]
[1742781330745,0.01182075,85703.0,85702.0,0.678641]
[1742781330952,0.1494732,85708.0,85703.0,0.1166796]
[1742781331155,0.1494732,85708.0,85703.0,0.2716396]
[1742781331342,0.0328,85708.0,85703.0,0.3050396]
[1742781331650,0.1166778,85705.0,85703.0,0.3050396]
[1742781331847,0.1824783,85704.0,85703.0,0.3050396]
[1742781332043,0.18367831,85704.0,85703.0,0.3050396]
[1742781333440,0.18467831,85704.0,85703.0,0.3050396]
[1742781334255,0.06800001,85704.0,85703.0,0.3050396]
[1742781334445,0.0668,85704.0,85703.0,0.3050396]
[1742781334639,0.0668,85704.0,85703.0,0.31692235]
[1742781336147,0.06796,85704.0,85703.0,0.31692235]
[1742781336350,0.0668,85704.0,85703.0,0.31692235]
[1742781336740,0.06796,85704.0,85703.0,0.31692235]
[1742781339358,0.06796,85704.0,85703.0,0.67772235]
[1742781340155,0.1846383,85704.0,85703.0,0.67772235]
[1742781340355,0.1846383,85704.0,85703.0,0.6658396]
[1742781341258,0.06796,85704.0,85703.0,0.6658396]
[1742781341451,0.0668,85704.0,85703.0,0.6658396]
[1742781341659,0.06800001,85704.0,85703.0,0.6658396]
[1742781342166,0.0668,85704.0,85703.0,0.6658396]
[1742781342350,0.06800001,85704.0,85703.0,0.6658396]
[1742781342550,0.06800001,85704.0,85703.0,0.67750173]
[1742781342960,0.0668,85704.0,85703.0,0.67750173]
[1742781343154,0.06744,85704.0,85703.0,0.67750173]
[1742781344753,0.0668,85704.0,85703.0,0.67750173]
[1742781345252,0.06748,85704.0,85703.0,0.67750173]
[1742781346458,0.06748,85704.0,85703.0,0.79286173]
[1742781347457,0.0668,85704.0,85703.0,0.79286173]
[1742781348458,0.06748,85704.0,85703.0,0.79286173]
[1742781350951,0.06748,85704.0,85703.0,0.3531996]
[1742781350952,0.1841583,85704.0,85703.0,0.3531996]
[1742781351865,0.19585765,85704.0,85703.0,0.3531996]
[1742781353659,0.19585765,85704.0,85703.0,0.12116]
[1742781353856,0.19585765,85704.0,85703.0,0.1178396]
[1742781356061,0.1841583,85704.0,85703.0,0.1178396]
[1742781356869,0.1841583,85704.0,85703.0,0.1514396]
[1742781357473,0.1841583,85704.0,85703.0,0.1178396]
[1742781358367,0.1841583,85704.0,85703.0,0.13294596]
[1742781358561,0.1841583,85704.0,85703.0,0.1178396]
[1742781358762,0.1841583,85704.0,85703.0,0.13294619]
[1742781358963,0.1841583,85704.0,85703.0,0.16654619]
[1742781359267,0.1841583,85704.0,85703.0,0.1178396]
[1742781359570,0.19612024,85704.0,85703.0,0.1178396]
[1742781359775,0.1841583,85704.0,85703.0,0.1178396]
[1742781359973,0.1841583,85704.0,85703.0,0.13292808]
[1742781360370,0.1841583,85704.0,85703.0,0.13292804]
[1742781360574,0.1841583,85704.0,85703.0,0.1178396]
[1742781360766,0.1841583,85704.0,85703.0,0.13292814]
[1742781361369,0.1841583,85704.0,85703.0,0.1178396]
[1742781362463,0.1841583,85704.0,85703.0,0.00116]
[1742781362667,0.1166796,85703.0,85702.0,8e-05]
[1742781362879,0.1166919,85694.0,85693.0,0.27964395]
[1742781363181,0.1166919,85694.0,85693.0,0.28080395]
[1742781363469,0.23453324,85694.0,85693.0,0.28080395]
[1742781363874,0.29983324,85694.0,85693.0,0.28080395]
[1742781364071,0.30083324,85694.0,85693.0,0.28080395]
[1742781365376,0.30083324,85694.0,85692.0,8e-05]
[1742781365377,0.1166987,85689.0,85688.0,0.34994886]
[1742781365677,0.4783387,85689.0,85688.0,0.35082886]
[1742781365876,0.4783387,85689.0,85686.0,8e-05]
[1742781365877,0.1167014,85687.0,85686.0,8e-05]
[1742781366078,0.1750585,85684.0,85683.0,0.00064]
[1742781366275,0.1756985,85684.0,85683.0,0.00068]
[1742781366474,0.1167096,85681.0,85680.0,0.00017509]
[1742781366677,0.11730961,85681.0,85680.0,0.00017509]
[1742781366876,0.11730961,85681.0,85680.0,0.00025509]
[1742781367185,0.116726,85669.0,85668.0,8e-05]
[1742781367385,0.117406,85669.0,85668.0,0.02068]
[1742781367676,0.115406,85669.0,85668.0,0.0206]
[1742781368066,0.115406,85669.0,85668.0,0.1714273]
[1742781368272,0.15357921,85669.0,85668.0,0.1714273]
[1742781368479,0.18447921,85669.0,85668.0,0.1724273]
[1742781368877,0.19637181,85669.0,85668.0,0.1724273]
[1742781369781,0.1898986,85669.0,85668.0,0.1724273]
[1742781374070,0.19636649,85669.0,85668.0,0.1724273]
[1742781376679,0.19636649,85669.0,85668.0,0.0557]
[1742781377686,0.19636649,85669.0,85668.0,0.1724273]
[1742781378280,0.19636649,85669.0,85668.0,0.0557]
[1742781379584,0.55716649,85669.0,85668.0,0.0557]
[1742781380287,0.55716649,85669.0,85668.0,0.1724273]
[1742781380673,0.55716649,85669.0,85668.0,0.0557]
[1742781380878,0.56632403,85669.0,85668.0,0.0557]
[1742781381788,0.55716649,85669.0,85668.0,0.0557]
[1742781382781,0.55716649,85669.0,85668.0,0.0551]
[1742781382981,0.55716649,85669.0,85668.0,0.05578]
[1742781385881,0.55716649,85669.0,85668.0,0.0551]
[1742781386074,0.55716649,85669.0,85668.0,0.0557]
[1742781386687,0.55716649,85669.0,85668.0,0.0551]
[1742781386878,0.56634053,85669.0,85668.0,0.05578]
[1742781387079,0.56634053,85669.0,85668.0,0.0551]
[1742781387280,0.56634053,85669.0,85668.0,0.0557]
[1742781388380,0.1167314,85665.0,85663.0,4e-08]
[1742781388576,0.30846684,85664.0,85663.0,4e-08]
[1742781388776,0.30914684,85664.0,85663.0,4e-08]
[1742781389078,0.1167546,85648.0,85647.0,0.11722243]
[1742781389284,0.12652865,85648.0,85647.0,0.11782243]
[1742781389682,0.13299654,85648.0,85647.0,0.11782243]
[1742781389883,0.1238225,85648.0,85647.0,0.11782243]
[1742781390088,0.1238225,85648.0,85647.0,0.12782243]
[1742781390284,0.1238225,85648.0,85647.0,0.01106703]
[1742781390788,0.1932225,85648.0,85647.0,0.01106703]
[1742781391186,0.1942225,85648.0,85647.0,0.01106703]
[1742781391987,0.1942225,85648.0,85647.0,0.04416703]
[1742781392193,0.1942225,85648.0,85647.0,0.16092293]
[1742781392395,0.1942225,85648.0,85647.0,0.07516703]
[1742781393194,0.1942225,85648.0,85647.0,0.19192293]
[1742781393587,0.1942225,85648.0,85647.0,0.07516703]
[1742781395395,0.1942225,85648.0,85647.0,0.19192293]
[1742781395589,0.5550225,85648.0,85647.0,0.07516703]
[1742781395791,0.70448014,85648.0,85647.0,0.04146703]
[1742781396001,0.71413688,85648.0,85647.0,0.03146703]
[1742781396185,0.7253955,85648.0,85647.0,0.03146703]
[1742781396990,0.74098706,85648.0,85647.0,0.00518411]
[1742781397194,0.1167587,85645.0,85644.0,8e-05]
[1742781397384,0.142687,85645.0,85644.0,8e-05]
[1742781397587,0.1167737,85634.0,85633.0,0.0323]
[1742781397896,0.1167737,85634.0,85629.0,0.20941064]
[1742781397897,0.1167764,85632.0,85629.0,0.20941064]
[1742781398089,0.1167791,85630.0,85629.0,0.21001064]
[1742781398285,0.48808998,85630.0,85629.0,0.21001064]
[1742781398487,0.67164762,85630.0,85629.0,0.20941064]
[1742781398895,0.68346449,85630.0,85629.0,0.20941064]
[1742781399604,0.68346449,85630.0,85629.0,0.0008]
[1742781399605,0.701191,85630.0,85629.0,0.0008]
[1742781399892,0.1167805,85629.0,85628.0,8e-05]
[1742781400093,0.12727189,85629.0,85628.0,8e-05]
[1742781400295,0.2112984,85629.0,85628.0,8e-05]
[1742781400603,0.33574791,85629.0,85628.0,8e-05]
[1742781402894,0.33574791,85629.0,85628.0,0.00108]
[1742781403604,0.33574791,85629.0,85628.0,0.001]
[1742781407994,0.35123515,85629.0,85628.0,0.001]
[1742781410902,0.35129028,85629.0,85628.0,0.001]
[1742781413500,0.71209028,85629.0,85628.0,0.001]
[1742781414797,0.71208433,85629.0,85628.0,0.001]
[1742781415905,0.1167982,85616.0,85612.0,0.1168035]
[1742781416100,0.14282601,85616.0,85615.0,0.06110721]
[1742781416409,0.14282601,85616.0,85615.0,0.17790681]
[1742781416702,0.20052471,85616.0,85615.0,0.12750721]
[1742781416908,0.22569734,85616.0,85615.0,0.12750721]
[1742781417214,0.21020649,85616.0,85615.0,0.24430681]
[1742781417510,0.21020649,85616.0,85615.0,0.16130721]
[1742781417810,0.21020649,85616.0,85615.0,0.16430721]
[1742781418194,0.21020649,85616.0,85615.0,0.16830721]
[1742781419007,0.21020649,85616.0,85615.0,0.28510681]
[1742781419211,0.22168905,85616.0,85615.0,0.28510681]
[1742781419708,0.21020649,85616.0,85615.0,0.28510681]
[1742781420006,0.21020649,85616.0,85615.0,0.16830721]
[1742781420211,0.23760024,85616.0,85615.0,0.06746721]
[1742781420396,0.23760024,85616.0,85606.0,8e-05]
[1742781420397,0.1168091,85608.0,85607.0,0.0676]
[1742781420603,0.14303855,85608.0,85607.0,0.06828]
[1742781420803,0.16076506,85608.0,85607.0,0.06828]
[1742781421299,0.22756506,85608.0,85607.0,0.06828]
[1742781421502,0.22456506,85608.0,85607.0,0.03448]
[1742781421708,0.23186842,85608.0,85607.0,0.0378]
[1742781421904,0.23186842,85608.0,85607.0,0.0386]
[1742781422114,0.21685134,85608.0,85607.0,0.0406]
[1742781422413,0.33366353,85608.0,85607.0,0.0406]
[1742781422616,0.32636017,85608.0,85607.0,0.0378]
[1742781423311,0.3160278,85608.0,85607.0,0.0358]
[1742781424100,0.3253142,85608.0,85607.0,0.0358]
[1742781424605,0.3253142,85608.0,85607.0,0.0338]
[1742781425125,0.34121031,85608.0,85607.0,0.0338]
[1742781425817,0.3418689,85608.0,85607.0,0.0338]
[1742781426014,0.1168119,85606.0,85605.0,0.03578]
[1742781426208,0.143493,85606.0,85605.0,8e-05]
[1742781426402,0.1168187,85601.0,85600.0,0.1405]
[1742781426604,0.5042598,85601.0,85600.0,0.1056]
[1742781426809,0.5042598,85601.0,85600.0,0.105]
[1742781427009,0.5042598,85601.0,85600.0,0.1058]
[1742781427215,0.5697598,85601.0,85600.0,0.105]
[1742781427407,0.68657472,85601.0,85600.0,0.105]
[1742781427613,0.71160619,85601.0,85600.0,0.105]
[1742781427915,0.71147466,85601.0,85600.0,0.105]
[1742781428114,0.695038,85601.0,85600.0,0.105]
[1742781428316,0.68773304,85601.0,85600.0,0.105]
[1742781428715,0.68773304,85601.0,85600.0,0.106]
[1742781429219,0.68673304,85601.0,85600.0,0.106]
[1742781429603,0.68773304,85601.0,85600.0,0.1403]
[1742781430919,0.68773304,85601.0,85600.0,0.1393]
[1742781431412,0.68773304,85601.0,85600.0,0.105]
[1742781431612,0.91826134,85601.0,85600.0,0.105]
[1742781432226,0.93470373,85601.0,85600.0,0.07870089]
[1742781433316,0.94200907,85601.0,85600.0,0.07870089]
[1742781433722,0.94265056,85601.0,85600.0,0.07870089]
[1742781434221,0.0584135,85595.0,85583.0,0.00046738]
[1742781434411,0.1168405,85585.0,85584.0,0.0345]
[1742781434611,0.14499729,85585.0,85584.0,0.128]
[1742781434816,0.18278071,85585.0,85584.0,0.2448419]
[1742781435424,0.17002914,85585.0,85584.0,0.2448419]
[1742781435723,0.16980994,85585.0,85584.0,0.129]
[1742781435918,0.20421066,85585.0,85584.0,0.129]
[1742781436116,0.2482061,85585.0,85584.0,0.129]
[1742781436512,0.25994227,85585.0,85584.0,0.129]
[1742781436717,0.26865932,85585.0,85584.0,0.129]
[1742781437420,0.23335932,85585.0,85584.0,0.129]
[1742781437616,0.19895932,85585.0,85584.0,0.2478419]
[1742781438020,0.18722315,85585.0,85584.0,0.2478419]
[1742781438215,0.17991785,85585.0,85584.0,0.2478419]
[1742781438725,0.1712008,85585.0,85584.0,0.2478419]
[1742781439327,0.16389546,85585.0,85584.0,0.3948019]
[1742781439520,0.16389546,85585.0,85584.0,0.131]
[1742781439822,0.16389546,85585.0,85584.0,0.2478419]
[1742781440319,0.16389546,85585.0,85584.0,0.131]
[1742781440522,0.16389546,85585.0,85584.0,0.2478419]
[1742781441119,0.16389546,85585.0,85584.0,0.131]
[1742781441519,0.16389546,85585.0,85584.0,0.2478419]
[1742781441729,0.16097117,85585.0,85584.0,0.131]
[1742781442327,0.16097134,85585.0,85584.0,0.131]
[1742781442631,0.16097134,85585.0,85584.0,0.2478419]
[1742781443326,0.0584227,85583.0,85579.0,0.1466]
[1742781443525,0.18511802,85582.0,85581.0,0.1168419]
[1742781443726,0.18575158,85582.0,85581.0,0.2575219]
[1742781444027,0.18575158,85582.0,85581.0,0.26898613]
[1742781444229,0.19411672,85582.0,85581.0,0.26898613]
[1742781445022,0.19411672,85582.0,85581.0,0.38583073]
[1742781445221,0.20331523,85582.0,85581.0,0.38583073]
[1742781445424,0.20331523,85582.0,85581.0,0.38983073]
[1742781446129,0.20331523,85582.0,85581.0,0.5241265]
[1742781446530,0.20331523,85582.0,85581.0,0.6282265]
[1742781446725,0.02804503,85582.0,85581.0,0.6282265]
[1742781446929,0.14376962,85582.0,85581.0,0.6282265]
[1742781447127,0.16249453,85591.0,85589.0,0.1168351]
[1742781447128,0.0584174,85590.0,85589.0,0.1168351]
[1742781447327,0.10511794,85591.0,85590.0,0.1168337]
[1742781447523,0.10511794,85591.0,85590.0,0.1274737]
[1742781447524,0.10619794,85591.0,85590.0,0.1274737]
[1742781447729,0.13877058,85596.0,85595.0,0.1168269]
[1742781447929,0.13953058,85596.0,85595.0,0.1475069]
[1742781448320,0.25635608,85596.0,85595.0,0.1475069]
[1742781449130,0.1175855,85596.0,85595.0,0.1475069]
[1742781449334,0.00076,85596.0,85595.0,0.1475069]
[1742781449535,0.00276,85596.0,85595.0,0.1475069]
[1742781449925,0.00276,85596.0,85595.0,0.0892495]
[1742781450224,0.00476,85596.0,85595.0,0.0892495]
[1742781451124,0.00276,85596.0,85595.0,0.0902495]
[1742781451626,0.00076,85596.0,85595.0,0.0912495]
[1742781451826,0.00076,85596.0,85595.0,0.0902495]
[1742781452033,0.00076,85596.0,85595.0,0.0912495]
[1742781452229,0.03396,85596.0,85595.0,0.0912495]
[1742781452936,0.03396,85596.0,85595.0,0.03168]
[1742781453238,0.03396,85596.0,85595.0,0.1485069]
[1742781454526,0.1500255,85596.0,85595.0,0.2928269]
[1742781454737,0.03388,85596.0,85595.0,0.2928269]
[1742781455131,0.1822055,85596.0,85595.0,0.2928269]
[1742781455731,0.1822055,85596.0,85595.0,0.2918269]
[1742781456038,0.1822055,85596.0,85595.0,0.2635695]
[1742781456237,0.1822055,85596.0,85595.0,0.2641695]
[1742781457736,0.1822055,85596.0,85595.0,0.2651695]
[1742781458333,0.1822055,85596.0,85595.0,0.1208495]
[1742781458637,0.1822055,85596.0,85595.0,0.2542495]
[1742781459129,0.20007749,85596.0,85595.0,0.2818269]
[1742781460241,0.20107749,85596.0,85595.0,0.2818269]
[1742781460632,0.20107749,85596.0,85595.0,0.2808269]
[1742781460832,0.19007934,85596.0,85595.0,0.2808269]
[1742781462128,0.19007934,85596.0,85595.0,0.2225695]
[1742781462328,0.19007934,85596.0,85595.0,0.2231695]
[1742781465031,0.19007934,85596.0,85595.0,0.1649121]
[1742781465231,0.19007934,85596.0,85595.0,0.1174269]
[1742781467240,0.19007934,85596.0,85595.0,0.1502269]
[1742781467537,0.19007934,85596.0,85595.0,0.1602269]
[1742781468131,0.19007934,85596.0,85595.0,0.1019695]
[1742781468328,0.19007934,85596.0,85595.0,0.0691695]
[1742781471132,0.19007934,85596.0,85595.0,0.0106]
[1742781471334,0.19007934,85596.0,85595.0,0.1274269]
[1742781471741,0.19007934,85596.0,85595.0,0.0106]
[1742781471932,0.19007934,85596.0,85595.0,0.1274269]
[1742781472331,0.55087934,85596.0,85595.0,0.0106]
[1742781472647,0.1168405,85586.0,85585.0,0.1168399]
[1742781472835,0.1168405,85585.0,85584.0,0.1168406]
[1742781473040,0.18156051,85585.0,85584.0,0.0206]
[1742781473333,0.23133162,85585.0,85584.0,0.0206]
[1742781473947,0.22833162,85585.0,85584.0,0.0206]
[1742781474147,0.1168419,85584.0,85583.0,0.17183324]
[1742781474343,0.1168419,85584.0,85583.0,0.20183324]
[1742781474539,0.19809301,85584.0,85583.0,0.20183324]
[1742781474739,0.19709301,85584.0,85583.0,0.20243324]
[1742781474941,0.19581301,85584.0,85583.0,0.20183324]
[1742781475248,0.19581301,85584.0,85583.0,0.03008]
[1742781475438,0.20500316,85584.0,85583.0,0.03008]
[1742781475745,0.20500316,85584.0,85583.0,0.03108]
[1742781477254,0.0584223,85582.0,85578.0,0.5006]
[1742781477447,0.4776487,85579.0,85578.0,0.16]
[1742781477644,0.1168569,85573.0,85572.0,0.17175324]
[1742781477944,0.12637983,85573.0,85572.0,0.17175324]
[1742781478241,0.12637983,85573.0,85572.0,0.62821154]
[1742781478435,0.1168569,85573.0,85572.0,0.62821154]
[1742781478833,0.01797111,85573.0,85572.0,0.62821154]
[1742781479035,0.13482801,85573.0,85572.0,0.4564583]
[1742781479540,0.01613412,85573.0,85572.0,0.4564583]
[1742781479746,0.01741412,85573.0,85572.0,0.4570583]
[1742781480245,0.12739718,85573.0,85572.0,0.3988009]
[1742781480949,0.13427102,85573.0,85572.0,0.3988009]
[1742781481447,0.13427102,85573.0,85572.0,0.3402]
[1742781481643,0.2154209,85573.0,85572.0,0.4570583]
[1742781482043,0.2154209,85573.0,85572.0,0.4579783]
[1742781482345,0.2154209,85573.0,85572.0,0.5235783]
[1742781482553,0.22727852,85573.0,85572.0,0.5235783]
[1742781483250,0.22727852,85573.0,85572.0,0.4653209]
[1742781483651,0.21162864,85573.0,85572.0,0.4653209]
[1742781485641,0.22726844,85573.0,85572.0,0.3481026]
[1742781485953,0.22726844,85573.0,85572.0,0.2079426]
[1742781486346,0.22726844,85573.0,85572.0,0.1796852]
[1742781486743,0.20236836,85573.0,85572.0,0.1796852]
[1742781486946,0.22822324,85573.0,85572.0,0.1796852]
[1742781487655,0.22822324,85573.0,85572.0,0.2965435]
[1742781487954,0.16272324,85573.0,85572.0,0.2965435]
[1742781488155,0.04586634,85573.0,85572.0,0.2965435]
[1742781488341,0.16272324,85573.0,85572.0,0.2965435]
[1742781488548,0.13495492,85573.0,85572.0,0.2965435]
[1742781488851,0.01779114,85573.0,85572.0,0.6573435]
[1742781489051,0.01651114,85573.0,85572.0,0.6573435]
[1742781489256,0.13336804,85573.0,85572.0,0.6573435]
[1742781489454,0.13336804,85573.0,85572.0,0.5990861]
[1742781489753,0.01651114,85573.0,85572.0,0.5990861]
[1742781490944,0.13334989,85573.0,85572.0,0.5990861]
[1742781491851,0.13462989,85573.0,85572.0,0.5990861]
[1742781492550,0.13462989,85573.0,85572.0,0.57983779]
[1742781492754,0.12501074,85573.0,85572.0,0.57983779]
[1742781492947,0.13467686,85573.0,85572.0,0.57983779]
[1742781493154,0.0584076,85604.0,85584.0,0.1168419]
[1742781493456,0.25649109,85585.0,85584.0,0.5868019]
[1742781494058,0.26827702,85585.0,85584.0,0.6532019]
[1742781494360,0.12950644,85585.0,85584.0,0.6532019]
[1742781494659,0.13150644,85585.0,85584.0,0.6532019]
[1742781495257,0.01466594,85585.0,85584.0,0.6532019]
[1742781495457,0.01378593,85585.0,85584.0,0.6532019]
[1742781495650,0.01666594,85585.0,85584.0,0.6532019]
[1742781496047,0.00488001,85585.0,85584.0,0.66762548]
[1742781496248,0.004,85585.0,85584.0,0.66762548]
[1742781496447,0.1208405,85585.0,85584.0,0.66762548]
[1742781496755,0.12172051,85585.0,85584.0,0.66762548]
[1742781497053,0.11972051,85585.0,85584.0,0.66762548]
[1742781497259,0.00388001,85585.0,85584.0,0.66762548]
[1742781497453,0.001,85585.0,85584.0,0.66762548]
[1742781497859,0.01206191,85585.0,85584.0,0.66762548]
[1742781498059,0.01298191,85585.0,85584.0,0.66762548]
[1742781498960,0.01206191,85585.0,85584.0,0.66762548]
[1742781499751,0.01294192,85585.0,85584.0,0.66762548]
[1742781499960,0.07766191,85585.0,85584.0,0.66762548]
[1742781500666,0.0666,85585.0,85584.0,0.66762548]
[1742781501663,0.0354,85585.0,85584.0,0.66762548]
[1742781501859,0.001,85585.0,85584.0,0.66762548]
[1742781503163,0.001,85585.0,85584.0,0.52826548]
[1742781503357,0.00196001,85585.0,85584.0,0.66578548]
[1742781503557,0.0663,85585.0,85584.0,0.66578548]
[1742781505164,0.18991357,85585.0,85584.0,0.66578548]
[1742781505559,0.18991357,85585.0,85584.0,0.3306]
[1742781505857,0.55159358,85585.0,85584.0,0.2206]
[1742781506757,0.5665552,85585.0,85584.0,0.2206]
[1742781506957,0.57764373,85585.0,85584.0,0.2206]
[1742781507764,0.57764373,85585.0,85584.0,0.3374419]
[1742781508262,0.57864373,85585.0,85584.0,0.3374419]
[1742781508566,0.57864373,85585.0,85584.0,0.2206]
[1742781508965,0.5675552,85585.0,85584.0,0.3374419]
[1742781509263,0.5675552,85585.0,85584.0,0.2206]
[1742781511170,0.5685552,85585.0,85584.0,0.2206]
[1742781512460,0.5695552,85585.0,85584.0,0.2206]
[1742781513371,0.70832578,85585.0,85584.0,0.2206]
[1742781515166,0.70832578,85585.0,85584.0,0.3374419]
[1742781515874,0.70832578,85585.0,85584.0,0.2206]
[1742781516064,0.70832578,85585.0,85584.0,0.3374419]
[1742781516265,0.70832578,85585.0,85584.0,0.2206]
[1742781519771,0.70832578,85585.0,85584.0,0.0006]
[1742781521573,0.1168419,85584.0,85583.0,8e-05]
[1742781521875,0.1168419,85584.0,85583.0,0.11008]
[1742781522063,0.19167498,85584.0,85583.0,0.11008]
[1742781522277,0.19071497,85584.0,85583.0,0.11008]
[1742781523178,0.19071497,85584.0,85583.0,0.14428]
[1742781523382,0.19071497,85584.0,85583.0,0.2611232]
[1742781523568,0.19271497,85584.0,85583.0,0.2953232]
[1742781523768,0.19271497,85584.0,85583.0,0.17848]
[1742781524472,0.19471497,85584.0,85583.0,0.17848]
[1742781524871,0.1879419,85584.0,85583.0,0.17848]
[1742781525473,0.30478685,85584.0,85583.0,0.11008]
[1742781525676,0.30478685,85584.0,85583.0,0.11]
[1742781526778,0.31142667,85584.0,85583.0,0.11]
[1742781527179,0.31230668,85584.0,85583.0,0.11]
[1742781527875,0.31230668,85584.0,85583.0,0.1106]
[1742781528280,0.31230668,85584.0,85583.0,0.11]
[1742781529974,0.31230668,85584.0,85583.0,0.1451]
[1742781530275,0.31230668,85584.0,85583.0,0.179]
[1742781530475,0.31230668,85584.0,85583.0,0.069]
[1742781530871,0.30566686,85584.0,85583.0,0.069]
[1742781531468,0.1168432,85583.0,85582.0,8e-05]
[1742781531675,0.18392321,85583.0,85582.0,8e-05]
[1742781532073,0.1168501,85578.0,85577.0,0.0325]
[1742781532274,0.11773011,85578.0,85577.0,0.1699514]
[1742781532784,0.11773011,85578.0,85577.0,0.2031514]
[1742781532978,0.18503011,85578.0,85577.0,0.2031514]
[1742781533374,0.18603011,85578.0,85577.0,0.0863]
[1742781533575,0.18603011,85578.0,85577.0,0.2031514]
[1742781536986,0.11873011,85578.0,85577.0,0.3031514]
[1742781537787,0.2579173,85578.0,85577.0,0.3031514]
[1742781537988,0.1410672,85578.0,85577.0,0.3031514]
[1742781538780,0.1410672,85578.0,85577.0,0.31811541]
[1742781539289,0.2579173,85578.0,85577.0,0.31811541]
[1742781540392,0.00188001,85578.0,85577.0,0.31811541]
[1742781540690,0.11873011,85578.0,85577.0,0.3031514]
[1742781541891,0.00188001,85578.0,85577.0,0.3181042]
[1742781542087,0.11873011,85578.0,85577.0,0.3181042]
[1742781542293,0.00188001,85578.0,85577.0,0.3181042]
[1742781542493,0.11873011,85578.0,85577.0,0.3181042]
[1742781543089,0.00188001,85578.0,85577.0,0.1206]
[1742781543287,0.11873011,85578.0,85577.0,0.2374514]
[1742781543590,0.11873011,85578.0,85577.0,0.0306]
[1742781543792,0.15213011,85578.0,85577.0,0.0206]
[1742781543995,0.15213011,85578.0,85577.0,0.053]